[Event "Nordic Chess-ch 2019"]
[Site "Sarpsborg"]
[Date "2019.06.24"]
[Round "6.34"]
[White "Holst, Conny"]
[Black "Rukovci, Shemsi"]
[Result "1-0"]
[ECO "D61"]
[WhiteElo "2197"]
[BlackElo "1907"]
[Annotator "ChessBase"]
[PlyCount "120"]
[EventDate "2019.06.21"]
[EventType "swiss"]
[EventCountry "NOR"]
[SourceTitle "playchess.com"]
[Source "ChessBase"]
[SourceQuality "1"]
[TimeControl "40/5400+30:1800+30"]

1. d4 {[%emt 0:00:00]} d5 {[%emt 0:01:22]} 2. c4 {[%emt 0:00:25]} e6 {[%emt 1:29:38]} 3. Nc3 {[%emt 1:31:05]} Nf6 {[%emt 0:00:00]} 4. Bg5 {[%emt 0:00:00]} Be7 {[%emt 0:00:00]} 5. e3 {[%emt 0:00:00]} Nbd7 {[%emt 0:00:00]} 6. Qc2 {[%emt 0:00:00]} O-O {[%emt 0:00:00]} 7. Rd1 {[%emt 0:00:00]} Re8 {[%emt 0:00:00]} 8. Nf3 {[%emt 0:00:00]} c6 {[%emt 0:00:00]} 9. Bd3 {[%emt 0:00:00]} Nf8 {[%emt 0:00:00]} 10. Ne5 {[%emt 0:00:00]} N6d7 {[%emt 0:00:00]} 11. Bxe7 {[%emt 0:00:00]} Qxe7 {[%emt 0:00:00]} 12. f4 {[%emt 0:00:00]} Nxe5 {[%emt 0:00:00]} 13. fxe5 {[%emt 0:00:00]} Qg5 {[%emt 0:00:00]} 14. Qf2 {[%emt 0:00:00]} Ng6 {[%emt 0:00:00]} 15. h4 {[%emt 0:00:00]} Qe7 {[%emt 0:00:00]} 16. h5 {[%emt 0:00:00]} Nf8 {[%emt 0:00:00]} 17. O-O {[%emt 0:00:00]} Nd7 {[%emt 0:00:00]} 18. Qg3 {[%emt 0:00:00]} Rf8 {[%emt 0:00:00]} 19. Rf4 {[%emt 0:00:00]} f5 {[%emt 0:00:00]} 20. exf6 {[%emt 0:00:00]} Nxf6 {[%emt 0:00:00]} 21. Rdf1 {[%emt 0:00:00]} Bd7 {[%emt 0:00:00]} 22. Qg5 {[%emt 0:00:00]} dxc4 {[%emt 0:00:00]} 23. Bxc4 {[%emt 0:00:00]} Nd5 {[%emt 0:00:00]} 24. Qxe7 {[%emt 0:00:00]} Nxe7 {[%emt 0:00:00]} 25. Ne4 {[%emt 0:00:00]} Rxf4 {[%emt 0:00:00]} 26. Rxf4 {[%emt 0:00:00]} Nd5 {[%emt 0:00:00]} 27. Rf3 {[%emt 0:00:00]} Rf8 {[%emt 0:00:00]} 28. Kf2 {[%emt 0:00:42]} Rxf3+ {[%emt 0:00:00]} 29. Kxf3 {[%emt 0:00:44]} Kf8 {[%emt 0:00:00]} 30. Nc5 {[%emt 0:01:29]} Bc8 {[%emt 0:00:00]} 31. e4 {[%emt 0:01:10]} Nc7 {[%emt 0:00:00]} 32. Kf4 {[%emt 0:00:49]} b6 {[%emt 0:00:37]} 33. Nd3 {[%emt 0:01:47]} Ba6 {[%emt 0:01:56]} 34. Bxa6 {[%emt 0:00:10]} Nxa6 {[%emt 0:00:01]} 35. a3 {[%emt 0:03:55]} Ke7 {[%emt 0:01:07]} 36. g4 {[%emt 0:00:29]} Nc7 {[%emt 0:02:44]} 37. g5 {[%emt 0:01:27]} Nb5 {[%emt 0:00:46]} 38. Ke3 {[%emt 0:00:34]} Nd6 {[%emt 0:00:16]} 39. Ne5 {[%emt 0:00:49]} c5 {[%emt 0:00:58]} 40. dxc5 {[%emt 0:01:00]} bxc5 {[%emt 0:00:33]} 41. Kd3 {[%emt 0:33:01]} a6 {[%emt 0:32:55]} 42. a4 {[%emt 0:00:00]} Ne8 {[%emt 0:00:00]} 43. Kc4 {[%emt 0:00:00]} Nd6+ {[%emt 0:00:00]} 44. Kxc5 {[%emt 0:00:00]} Nxe4+ {[%emt 0:00:00]} 45. Kb6 {[%emt 0:00:00]} Nxg5 {[%emt 0:00:00]} 46. b4 {[%emt 0:00:00]} Ne4 {[%emt 0:00:00]} 47. Kxa6 {[%emt 0:00:00]} Kd6 {[%emt 0:00:00]} 48. Ng4 {[%emt 0:00:00]} Kc7 {[%emt 0:00:00]} 49. a5 {[%emt 0:00:00]} Nd6 {[%emt 0:00:00]} 50. b5 {[%emt 0:00:00]} Kb8 {[%emt 0:01:20]} 51. Ne5 {[%emt 0:00:00]} g5 {[%emt 0:01:17]} 52. Kb6 {[%emt 0:00:00]} g4 {[%emt 0:02:10]} 53. Kc6 {[%emt 0:00:00]} Nb7 {[%emt 0:01:39]} 54. a6 {[%emt 0:00:00]} Na5+ {[%emt 0:00:48]} 55. Kb6 {[%emt 0:02:49]} Nb3 {[%emt 0:00:16]} 56. Nd7+ {[%emt 0:01:13]} Ka8 {[%emt 0:00:11]} 57. a7 {[%emt 0:00:59]} g3 {[%emt 0:01:53]} 58. Ka6 {[%emt 0:00:10]} Nc5+ {[%emt 0:00:17]} 59. Nxc5 {[%emt 0:00:06]} g2 {[%emt 0:00:18]} 60. b6 {[%emt 0:00:06]} g1=Q {[%emt 0:00:17]} 1-0

[Event "Nordic Chess-ch 2019"]
[Site "Sarpsborg"]
[Date "2019.06.24"]
[Round "6.35"]
[White "Andersen, Harry"]
[Black "Skogheim, Ole Morten"]
[Result "0-1"]
[ECO "B32"]
[WhiteElo "1905"]
[BlackElo "1950"]
[Annotator "NA"]
[PlyCount "80"]
[EventDate "2019.06.21"]
[EventType "swiss"]
[EventCountry "NOR"]
[SourceTitle "playchess.com"]
[Source "ChessBase"]
[SourceQuality "1"]
[TimeControl "40/5400+30:1800+30"]

1. e4 {[%emt 0:02:05]} c5 {[%emt 0:00:00]} 2. Nf3 {[%emt 0:00:24]} Nc6 {[%emt 0:00:00]} 3. d4 {[%emt 0:00:22]} cxd4 {[%emt 0:00:00]} 4. Nxd4 {[%emt 0:00:09]} e5 {[%emt 0:00:30]} 5. Nb5 {[%emt 0:00:40]} d6 {[%emt 0:00:07]} 6. N1c3 {[%emt 0:01:57]} a6 {[%emt 0:00:10]} 7. Na3 {[%emt 0:00:07]} b5 {[%emt 0:00:18]} 8. Nd5 {[%emt 0:00:55]} Nge7 {[%emt 0:00:40]} 9. c3 {[%emt 0:01:56]} Nxd5 {[%emt 0:02:23]} 10. Qxd5 {[%emt 0:02:01]} Bb7 {[%emt 0:01:47]} 11. Be3 {[%emt 0:03:18]} Qc7 {[%emt 0:02:06]} 12. Rd1 {[%emt 0:02:53]} Nd4 {[%emt 0:01:19]} 13. Nxb5 {[%emt 0:02:34]} axb5 {[%emt 0:03:00]} 14. Bxb5+ {[%emt 0:00:29]} Nxb5 {[%emt 0:03:06]} 15. Qxb5+ {[%emt 0:00:47]} Qc6 {[%emt 0:02:22]} 16. a4 {[%emt 0:02:29]} Rxa4 {[%emt 0:01:36]} 17. Qxc6+ {[%emt 0:00:55]} Bxc6 {[%emt 0:00:08]} 18. f3 {[%emt 0:00:17]} Ra2 {[%emt 0:02:01]} 19. Rd2 {[%emt 0:02:30]} Ra1+ {[%emt 0:00:33]} 20. Rd1 {[%emt 0:00:13]} Rxd1+ {[%emt 0:01:45]} 21. Kxd1 {[%emt 0:00:11]} Be7 {[%emt 0:01:09]} 22. Kc2 {[%emt 0:00:06]} Kd7 {[%emt 0:00:38]} 23. b4 {[%emt 0:01:29]} Ra8 {[%emt 0:01:42]} 24. Kb3 {[%emt 0:00:43]} d5 {[%emt 0:01:50]} 25. exd5 {[%emt 0:00:38]} Bxd5+ {[%emt 0:00:10]} 26. c4 {[%emt 0:00:12]} Be6 {[%emt 0:00:53]} 27. Rd1+ {[%emt 0:02:10]} Kc8 {[%emt 0:00:58]} 28. Bd2 {[%emt 0:01:17]} Kb7 {[%emt 0:03:51]} 29. Re1 {[%emt 0:06:40]} Rc8 {[%emt 0:05:20]} 30. Rc1 {[%emt 0:01:17]} h5 {[%emt 0:06:49]} 31. Be1 {[%emt 0:05:09]} h4 {[%emt 0:03:37]} 32. Bf2 {[%emt 0:00:57]} Bg5 {[%emt 0:06:39]} 33. Rc2 {[%emt 0:00:20]} Rd8 {[%emt 0:00:56]} 34. Be1 {[%emt 0:02:35]} Rd3+ {[%emt 0:06:13]} 35. Ka4 {[%emt 0:02:32]} Be7 {[%emt 0:05:57]} 36. Bc3 {[%emt 0:01:25]} Bxc4 {[%emt 0:01:16]} 37. Rc1 {[%emt 0:01:05]} Be6 {[%emt 0:00:54]} 38. h3 {[%emt 0:02:36]} Rd8 {[%emt 0:03:09]} 39. Bxe5 {[%emt 0:00:46]} Ra8+ {[%emt 0:00:29]} 40. Kb5 {[%emt 0:00:08]} Bd7+ {[%emt 0:00:09]} 0-1

[Event "Nordic Chess-ch 2019"]
[Site "Sarpsborg"]
[Date "2019.06.24"]
[Round "6.36"]
[White "Mirza, Raad"]
[Black "Lunde, Sigmund"]
[Result "1-0"]
[ECO "C01"]
[WhiteElo "1991"]
[BlackElo "1834"]
[Annotator "NA"]
[PlyCount "153"]
[EventDate "2019.06.21"]
[EventType "swiss"]
[EventCountry "NOR"]
[SourceTitle "playchess.com"]
[Source "ChessBase"]
[SourceQuality "1"]
[TimeControl "40/5400+30:1800+30"]

1. e4 {[%emt 0:00:00]} d5 {[%emt 0:02:34]} 2. exd5 {[%emt 0:02:29]} Qxd5 {[%emt 0:01:39]} 3. Nf3 {[%emt 0:02:27]} Nf6 {[%emt 0:04:00]} 4. d4 {[%emt 0:01:20]} e6 {[%emt 0:02:47]} 5. Bd3 {[%emt 0:04:46]} c5 {[%emt 0:03:33]} 6. Nc3 {[%emt 0:02:20] C01: French: Exchange Variation} Qd8 {[%emt 0:00:51]} 7. Be3 {[%emt 0:05:09]} (7. Bg5 cxd4 8. Bb5+ Bd7 9. Qxd4 a6 10. Bxd7+ Nbxd7 11. O-O-O Bc5 12. Bxf6 Bxd4 13. Bxd8 Bxc3 {½-½ (46) Soffer,R (2472)-Bischoff,K (2507) Bled 2018}) 7... cxd4 {[%emt 0:06:12]} 8. Bxd4 {[%emt 0:01:49]} Nc6 {[%emt 0:00:19]} 9. Be3 {[%emt 0:01:16]} Nd5 $146 {[%emt 0:03:22]} ({Predecessor:} 9... Be7 10. Qe2 Qa5 11. O-O O-O 12. a3 {1-0 (66) Pessi,E (2260)-Amarita,A (2066) Eforie Nord 2002}) 10. Nxd5 {[%emt 0:02:18]} Qxd5 {[%emt 0:00:49]} 11. O-O {[%emt 0:03:31]} Be7 {[%emt 0:05:56]} 12. Qe2 {[%emt 0:12:32]} O-O {[%emt 0:02:33]} 13. Rfd1 {[%emt 0:05:17]} Qh5 {[%emt 0:04:27]} 14. Bf4 {[%emt 0:00:29]} g5 {[%emt 0:23:14]} 15. Nxg5 {[%emt 0:06:21]} Qxe2 {[%emt 0:04:57]} 16. Bxe2 {[%emt 0:00:14]} e5 {[%emt 0:01:19]} 17. Be3 {[%emt 0:02:11]} f5 {[%emt 0:06:12]} 18. Bc4+ {[%emt 0:00:30]} Kg7 {[%emt 0:00:10]} 19. Ne6+ {[%emt 0:01:06]} Bxe6 {[%emt 0:00:24]} 20. Bxe6 {[%emt 0:00:02]} f4 {[%emt 0:00:21]} 21. Bd2 {[%emt 0:00:31]} Nd4 {[%emt 0:01:28]} 22. Bd5 {[%emt 0:01:27]} Rad8 {[%emt 0:02:20]} 23. Be4 {[%emt 0:03:11]} Rc8 {[%emt 0:03:17]} 24. c3 {[%emt 0:02:12]} Nc6 {[%emt 0:00:51]} 25. f3 {[%emt 0:00:50]} Nd8 {[%emt 0:03:43]} 26. Be1 {[%emt 0:00:19]} Rc7 {[%emt 0:01:22]} 27. Bf2 {[%emt 0:01:55]} b6 {[%emt 0:00:17]} 28. Rd5 {[%emt 0:00:46]} Nf7 {[%emt 0:00:49]} 29. Rad1 {[%emt 0:00:48]} Rd8 {[%emt 0:00:35]} 30. g3 {[%emt 0:01:27]} Rxd5 {[%emt 0:05:04]} 31. Rxd5 {[%emt 0:00:09]} fxg3 {[%emt 0:02:36]} 32. Bxg3 {[%emt 0:01:03]} Bf6 {[%emt 0:00:34]} 33. Kf1 {[%emt 0:01:05]} h6 {[%emt 0:00:49]} 34. Ke2 {[%emt 0:00:37]} Kf8 {[%emt 0:01:37]} 35. h4 {[%emt 0:00:43]} Ke7 {[%emt 0:00:24]} 36. Bf5 {[%emt 0:02:12]} Nd6 {[%emt 0:01:19]} 37. Bxe5 {[%emt 0:00:27]} Bxe5 {[%emt 0:02:09]} 38. Rxe5+ {[%emt 0:00:02]} Kf7 {[%emt 0:00:18]} 39. Be4 {[%emt 0:05:25]} Kf6 {[%emt 0:01:59]} 40. Rh5 {[%emt 0:03:02]} Kg7 {[%emt 0:00:25]} 41. Bd3 {[%emt 0:31:05]} Re7+ {[%emt 0:30:14]} 42. Kf2 {[%emt 0:00:46]} Ne8 {[%emt 0:00:30]} 43. Rd5 {[%emt 0:00:42]} Nf6 {[%emt 0:01:11]} 44. Rf5 {[%emt 0:04:04]} Ne8 {[%emt 0:00:38]} 45. a4 {[%emt 0:01:03]} Nd6 {[%emt 0:01:37]} 46. Rd5 {[%emt 0:00:07]} Ne8 {[%emt 0:00:00]} 47. a5 {[%emt 0:00:00]} bxa5 {[%emt 0:00:00]} 48. Rxa5 {[%emt 0:00:00]} Rb7 {[%emt 0:00:00]} 49. b4 {[%emt 0:00:00]} Rc7 {[%emt 0:00:00]} 50. c4 {[%emt 0:00:00]} Rb7 {[%emt 0:00:00]} 51. b5 {[%emt 0:00:00]} Rc7 {[%emt 0:00:00]} 52. Ra6 {[%emt 0:00:00]} Nf6 {[%emt 0:00:00]} 53. b6 {[%emt 0:00:00]} axb6 {[%emt 0:00:00]} 54. Rxb6 {[%emt 0:00:00]} Kf7 {[%emt 0:00:00]} 55. Ke3 {[%emt 0:00:00]} Rc5 {[%emt 0:00:00]} 56. Rb5 {[%emt 0:00:00]} Rc7 {[%emt 0:00:00]} 57. Kd4 {[%emt 0:00:00]} Rd7+ {[%emt 0:00:00]} 58. Kc3 {[%emt 0:00:00]} Ke7 {[%emt 0:00:00]} 59. Be4 {[%emt 0:00:00]} Rd1 {[%emt 0:00:00]} 60. Ra5 {[%emt 0:00:29]} Rh1 {[%emt 0:00:00]} 61. Kd4 {[%emt 0:01:50]} Rxh4 {[%emt 0:00:00]} 62. Ra7+ {[%emt 0:00:28]} Kd8 {[%emt 0:00:00]} 63. Rf7 {[%emt 0:00:22]} Nxe4 {[%emt 0:00:00]} 64. fxe4 {[%emt 0:00:20]} Rh1 {[%emt 0:00:00]} 65. Rh7 {[%emt 0:00:15]} h5 {[%emt 0:00:00]} 66. Ke5 {[%emt 0:00:44]} h4 {[%emt 0:00:00]} 67. Ke6 {[%emt 0:00:50]} h3 {[%emt 0:00:00]} 68. e5 {[%emt 0:00:19]} h2 {[%emt 0:00:00]} 69. c5 {[%emt 0:00:41]} Rc1 {[%emt 0:00:00]} 70. Rxh2 {[%emt 0:00:24]} Kc7 {[%emt 0:00:06]} 71. Rh7+ {[%emt 0:06:03]} Kc6 {[%emt 0:00:14]} 72. Rh8 {[%emt 0:00:57]} Kc7 {[%emt 0:01:37]} 73. Ke7 $18 {[%emt 0:01:24]} (73. Kf7 $142 Rf1+ 74. Ke7 Kc6 75. e6 Re1 76. Rf8 Kxc5 77. Kf7 Rf1+ 78. Ke8) 73... Rxc5 {[%emt 0:00:16]} 74. e6 {[%emt 0:00:07]} Re5 {[%emt 0:06:31]} 75. Kf6 {[%emt 0:00:40]} Re1 {[%emt 0:00:20]} 76. e7 {[%emt 0:00:40]} Rf1+ {[%emt 0:00:09]} 77. Kg5 {[%emt 0:00:46]} 1-0

[Event "Nordic Chess-ch 2019"]
[Site "Sarpsborg"]
[Date "2019.06.24"]
[Round "6.37"]
[White "Larsen, Bjorn"]
[Black "Andersen, Dag"]
[Result "1/2-1/2"]
[ECO "B47"]
[WhiteElo "1680"]
[BlackElo "1817"]
[Annotator "NA"]
[PlyCount "54"]
[EventDate "2019.06.21"]
[EventType "swiss"]
[EventCountry "NOR"]
[SourceTitle "playchess.com"]
[Source "ChessBase"]
[SourceQuality "1"]
[TimeControl "40/5400+30:1800+30"]

1. e4 {[%emt 0:02:14]} c5 {[%emt 0:00:00]} 2. Nf3 {[%emt 0:00:05]} e6 {[%emt 0:00:00]} 3. d4 {[%emt 0:00:13]} cxd4 {[%emt 0:00:00]} 4. Nxd4 {[%emt 0:00:11]} Nc6 {[%emt 0:00:06]} 5. Nc3 {[%emt 0:00:27]} Qc7 {[%emt 0:00:10]} 6. Be2 {[%emt 0:01:35]} a6 {[%emt 0:00:06]} 7. a4 {[%emt 0:00:11]} Bb4 {[%emt 0:01:15]} 8. O-O {[%emt 0:01:46]} Bxc3 {[%emt 0:00:13]} 9. bxc3 {[%emt 0:01:02]} Nf6 {[%emt 0:00:44]} 10. f3 {[%emt 0:01:24]} d5 {[%emt 0:03:17]} 11. Nxc6 {[%emt 0:03:26]} bxc6 {[%emt 0:00:47]} 12. Bg5 {[%emt 0:02:28]} Nd7 {[%emt 0:00:39]} 13. exd5 {[%emt 0:04:30]} cxd5 {[%emt 0:00:19]} 14. Qd4 {[%emt 0:00:24]} Qc5 {[%emt 0:05:28]} 15. Be3 {[%emt 0:02:33]} Qxd4 {[%emt 0:00:35]} 16. cxd4 {[%emt 0:00:13]} O-O {[%emt 0:02:35]} 17. Rab1 {[%emt 0:06:06]} Rb8 {[%emt 0:00:32]} 18. Rxb8 {[%emt 0:00:24]} Nxb8 {[%emt 0:00:05]} 19. Rb1 {[%emt 0:00:52]} Bd7 {[%emt 0:01:40]} 20. a5 {[%emt 0:04:25]} Ba4 {[%emt 0:03:57]} 21. c3 {[%emt 0:04:40]} h6 {[%emt 0:07:43]} 22. Rb4 {[%emt 0:02:04]} Bc2 {[%emt 0:01:43]} 23. Rb2 {[%emt 0:04:52]} Bg6 {[%emt 0:00:37]} 24. Rb6 {[%emt 0:02:11]} Rc8 {[%emt 0:02:47]} 25. Bd2 {[%emt 0:02:27]} Kf8 {[%emt 0:01:56]} 26. Bxa6 {[%emt 0:03:47]} Nxa6 {[%emt 0:00:48]} 27. Rxa6 {[%emt 0:00:15]} Bd3 {[%emt 0:00:34]} 1/2-1/2

[Event "Nordic Chess-ch 2019"]
[Site "Sarpsborg"]
[Date "2019.06.24"]
[Round "6.38"]
[White "Bergquist, Rune"]
[Black "Stabbetorp, Hans"]
[Result "1/2-1/2"]
[ECO "D15"]
[WhiteElo "1609"]
[BlackElo "1767"]
[Annotator "NA"]
[PlyCount "100"]
[EventDate "2019.06.21"]
[EventType "swiss"]
[EventCountry "NOR"]
[SourceTitle "playchess.com"]
[Source "ChessBase"]
[SourceQuality "1"]
[TimeControl "40/5400+30:1800+30"]

1. d4 {[%emt 0:00:00]} d5 {[%emt 1:30:30]} 2. c4 {[%emt 0:00:00]} c6 {[%emt 0:00:00]} 3. Nc3 {[%emt 0:00:00]} Nf6 {[%emt 0:00:00]} 4. Nf3 {[%emt 0:00:28]} a6 {[%emt 0:00:00]} 5. a4 {[%emt 0:02:08]} dxc4 {[%emt 0:00:00]} 6. e4 {[%emt 0:01:35]} b5 {[%emt 0:00:00]} 7. axb5 {[%emt 0:00:16]} cxb5 {[%emt 0:00:00]} 8. e5 {[%emt 0:01:39]} Nd5 {[%emt 0:00:00]} 9. Nxb5 {[%emt 0:01:02]} Bb7 {[%emt 0:00:00]} 10. Nc3 {[%emt 0:03:08]} Qc8 {[%emt 0:00:00]} 11. Nxd5 {[%emt 0:04:17]} Bxd5 {[%emt 0:00:00]} 12. Qa4+ {[%emt 0:02:15]} Qc6 {[%emt 0:00:00]} 13. Qxc6+ {[%emt 0:02:24]} Nxc6 {[%emt 0:00:00]} 14. Be3 {[%emt 0:03:19]} e6 {[%emt 0:00:00]} 15. Be2 {[%emt 0:05:59]} Bb4+ {[%emt 0:00:00]} 16. Kf1 {[%emt 0:00:48]} c3 {[%emt 0:00:00]} 17. bxc3 {[%emt 0:00:29]} Bxc3 {[%emt 0:00:00]} 18. Rxa6 {[%emt 0:00:38]} Rxa6 {[%emt 0:00:00]} 19. Bxa6 {[%emt 0:01:26]} Bxf3 {[%emt 0:00:00]} 20. gxf3 {[%emt 0:00:19]} Nxd4 {[%emt 0:00:00]} 21. Bxd4 {[%emt 0:01:11]} Bxd4 {[%emt 0:00:00]} 22. Kg2 {[%emt 0:07:59]} Bxe5 {[%emt 0:00:00]} 23. Bb5+ {[%emt 0:09:36]} Ke7 {[%emt 0:00:00]} 24. Re1 {[%emt 0:05:00]} Kf6 {[%emt 0:00:00]} 25. Re4 {[%emt 0:02:01]} g5 {[%emt 0:00:00]} 26. Ra4 {[%emt 0:03:46]} h5 {[%emt 0:00:00]} 27. h3 {[%emt 0:01:36]} Rd8 {[%emt 0:00:00]} 28. Ra2 {[%emt 0:02:05]} Rd4 {[%emt 0:00:00]} 29. Be2 {[%emt 0:02:07]} Kg6 {[%emt 0:00:00]} 30. Rc2 {[%emt 0:00:49]} Bf4 {[%emt 0:00:00]} 31. Ra2 {[%emt 0:04:05]} e5 {[%emt 0:00:00]} 32. Ra6+ {[%emt 0:04:14]} f6 {[%emt 0:00:00]} 33. Ra3 {[%emt 0:00:34]} Rd6 {[%emt 0:00:00]} 34. Ra2 {[%emt 0:01:34]} Bc1 {[%emt 0:00:00]} 35. Rc2 {[%emt 0:02:11]} Ba3 {[%emt 0:00:00]} 36. Kg3 {[%emt 0:03:51]} Rb6 {[%emt 0:00:00]} 37. Bd3+ {[%emt 0:03:00]} f5 {[%emt 0:00:00]} 38. Be2 {[%emt 0:03:12]} Bd6 {[%emt 0:00:00]} 39. Kg2 {[%emt 0:00:20]} Kf6 {[%emt 0:00:00]} 40. Ra2 {[%emt 0:00:39]} Bc5 {[%emt 0:00:00]} 41. Rc2 {[%emt 0:31:19]} Bd4 {[%emt 0:21:38]} 42. Ra2 {[%emt 0:00:35]} Rb2 {[%emt 0:28:52]} 43. Rxb2 {[%emt 0:00:22]} Bxb2 {[%emt 0:00:00]} 44. Bd3 {[%emt 0:02:24]} f4 {[%emt 0:00:00]} 45. Be4 {[%emt 0:02:47]} h4 {[%emt 0:00:00]} 46. Bc2 {[%emt 0:00:36]} Ke6 {[%emt 0:00:00]} 47. Be4 {[%emt 0:00:55]} Kd6 {[%emt 0:00:00]} 48. Bf5 {[%emt 0:01:01]} Kc5 {[%emt 0:00:00]} 49. Kf1 {[%emt 0:00:21]} Kd4 {[%emt 0:00:00]} 50. Ke2 {[%emt 0:00:35]} Ba3 {[%emt 0:00:00]} 1/2-1/2

[Event "Nordic Chess-ch 2019"]
[Site "Sarpsborg"]
[Date "2019.06.24"]
[Round "6.39"]
[White "Thorvlaksson, Baldvin"]
[Black "Andersen, Odd"]
[Result "1/2-1/2"]
[ECO "B12"]
[WhiteElo "1523"]
[BlackElo "1751"]
[Annotator "NA"]
[PlyCount "170"]
[EventDate "2019.06.21"]
[EventType "swiss"]
[EventCountry "NOR"]
[SourceTitle "playchess.com"]
[Source "ChessBase"]
[SourceQuality "1"]
[TimeControl "40/5400+30:1800+30"]

1. e4 {[%emt 0:00:00]} c6 {[%emt 0:00:00]} 2. d4 {[%emt 0:00:00]} d5 {[%emt 0:00:00]} 3. Bd3 {[%emt 1:31:30]} dxe4 {[%emt 0:00:07]} 4. Bxe4 {[%emt 0:00:00]} Nf6 {[%emt 0:00:11]} 5. Bf3 {[%emt 0:00:00]} Bf5 {[%emt 0:00:24]} 6. Ne2 {[%emt 0:00:00]} e6 {[%emt 0:00:20]} 7. c4 {[%emt 0:00:00]} h6 {[%emt 0:00:54]} 8. Nbc3 {[%emt 0:00:00]} Bd6 {[%emt 0:00:28]} 9. Bf4 {[%emt 0:00:00]} Na6 {[%emt 0:04:48]} 10. a3 {[%emt 0:00:00]} Nc7 {[%emt 0:01:15]} 11. Qd2 {[%emt 0:00:00]} g5 {[%emt 0:00:23]} 12. Bxd6 {[%emt 0:00:00]} Qxd6 {[%emt 0:00:02]} 13. Ng3 {[%emt 0:00:00]} Bg6 {[%emt 0:00:28]} 14. Nge4 {[%emt 0:00:00]} Nxe4 {[%emt 0:05:48]} 15. Nxe4 {[%emt 0:00:00]} Bxe4 {[%emt 0:01:10]} 16. Bxe4 {[%emt 0:00:00]} O-O-O {[%emt 0:01:57]} 17. O-O-O {[%emt 0:00:00]} Kb8 {[%emt 0:00:35]} 18. g3 {[%emt 0:00:00]} Rd7 {[%emt 0:02:47]} 19. Qc3 {[%emt 0:00:00]} Rhd8 {[%emt 0:00:18]} 20. Rd2 {[%emt 0:00:00]} Qe7 {[%emt 0:00:52]} 21. Rhd1 {[%emt 0:00:00]} Qf6 {[%emt 0:04:23]} 22. Qf3 {[%emt 0:00:00]} Qxf3 {[%emt 0:02:07]} 23. Bxf3 {[%emt 0:00:00]} a6 {[%emt 0:05:15]} 24. Kc2 {[%emt 0:00:00]} Ne8 {[%emt 0:00:32]} 25. d5 {[%emt 0:00:00]} cxd5 {[%emt 0:00:44]} 26. cxd5 {[%emt 0:00:00]} e5 {[%emt 0:00:30]} 27. Bg4 {[%emt 0:00:00]} Rd6 {[%emt 0:01:17]} 28. Bh5 {[%emt 0:00:00]} Rc8+ {[%emt 0:11:41]} 29. Kb1 {[%emt 0:00:00]} Rc7 {[%emt 0:00:19]} 30. Re2 {[%emt 0:00:00]} Ng7 {[%emt 0:02:52]} 31. Bf3 {[%emt 0:00:00]} f6 {[%emt 0:01:52]} 32. g4 {[%emt 0:00:00]} Rcd7 {[%emt 0:01:34]} 33. Be4 {[%emt 0:00:00]} Rd8 {[%emt 0:00:58]} 34. f3 {[%emt 0:15:30]} Ne6 {[%emt 0:50:09]} 35. Red2 {[%emt 0:00:00]} Nf4 {[%emt 0:00:00]} 36. Ka2 {[%emt 0:00:00]} Rc8 {[%emt 0:00:00]} 37. Kb1 {[%emt 0:00:00]} Rc5 {[%emt 0:00:00]} 38. Ka2 {[%emt 0:00:00]} a5 {[%emt 0:00:00]} 39. b4 {[%emt 0:00:00]} axb4 {[%emt 0:00:00]} 40. axb4 {[%emt 0:00:00]} Rb5 {[%emt 0:00:00]} 41. Ka3 {[%emt 0:27:27]} Ra6+ {[%emt 0:00:00]} 42. Kb3 {[%emt 0:00:21]} Rab6 {[%emt 0:00:00]} 43. d6 {[%emt 0:00:25]} Rxb4+ {[%emt 0:00:00]} 44. Kc3 {[%emt 0:00:17]} Rb3+ {[%emt 0:00:00]} 45. Kc2 {[%emt 0:00:58]} Rb2+ {[%emt 0:00:29]} 46. Kc1 {[%emt 0:00:24]} Rxd2 {[%emt 0:02:38]} 47. Rxd2 {[%emt 0:00:10]} Kc8 {[%emt 0:00:37]} 48. Bf5+ {[%emt 0:05:55]} Kd8 {[%emt 0:00:16]} 49. Kc2 {[%emt 0:00:00]} Rb5 {[%emt 0:00:00]} 50. Kc3 {[%emt 0:00:00]} Rd5 {[%emt 0:00:00]} 51. Rb2 {[%emt 0:00:00]} Rxd6 {[%emt 0:00:00]} 52. Rxb7 {[%emt 0:00:00]} h5 {[%emt 0:00:00]} 53. Rh7 {[%emt 0:00:00]} hxg4 {[%emt 0:00:00]} 54. Bxg4 {[%emt 0:00:00]} Ng2 {[%emt 0:00:00]} 55. Bf5 {[%emt 0:00:00]} Nh4 {[%emt 0:00:00]} 56. Be4 {[%emt 0:00:00]} Ke8 {[%emt 0:00:00]} 57. Ra7 {[%emt 0:00:00]} Kf8 {[%emt 0:00:00]} 58. Rh7 {[%emt 0:00:00]} Kg8 {[%emt 0:00:00]} 59. Ra7 {[%emt 0:00:00]} Rd1 {[%emt 0:00:00]} 60. Ra8+ {[%emt 0:00:00]} Kf7 {[%emt 0:00:00]} 61. Ra7+ {[%emt 0:00:00]} Kf8 {[%emt 0:00:00]} 62. Ra8+ {[%emt 0:00:00]} Ke7 {[%emt 0:00:00]} 63. Ra7+ {[%emt 0:00:00]} Rd7 {[%emt 0:00:00]} 64. Rxd7+ {[%emt 0:00:00]} Kxd7 {[%emt 0:00:00]} 65. Kd3 {[%emt 0:00:00]} Ke6 {[%emt 0:00:00]} 66. Bb7 {[%emt 0:00:00]} f5 {[%emt 0:02:03]} 67. Ke3 {[%emt 0:00:00]} Kf6 {[%emt 0:00:33]} 68. Bc6 {[%emt 0:00:00]} Kg6 {[%emt 0:01:01]} 69. Kf2 {[%emt 0:00:22]} Kf6 {[%emt 0:01:28]} 70. Kg3 {[%emt 0:02:15]} Ke7 {[%emt 0:01:21]} 71. Bb7 {[%emt 0:00:49]} Kd6 {[%emt 0:00:13]} 72. Bc8 {[%emt 0:00:57]} Kc5 {[%emt 0:02:21]} 73. Bb7 {[%emt 0:02:17]} Kd4 {[%emt 0:00:12]} 74. Kf2 {[%emt 0:00:13]} Ng6 {[%emt 0:04:50]} 75. Bc8 {[%emt 0:00:46]} Nh4 {[%emt 0:06:33]} 76. Ba6 {[%emt 0:00:35]} Kc3 {[%emt 0:01:45]} 77. Bb7 {[%emt 0:00:49]} Kd2 {[%emt 0:00:12]} 78. Ba6 {[%emt 0:00:09]} Ng6 {[%emt 0:06:22]} 79. Bc8 {[%emt 0:00:14]} e4 {[%emt 0:01:01]} 80. fxe4 {[%emt 0:01:03]} fxe4 {[%emt 0:00:15]} 81. Ba6 {[%emt 0:00:25]} e3+ {[%emt 0:01:07]} 82. Kg3 {[%emt 0:00:13]} Ne5 {[%emt 0:00:40]} 83. Bf1 {[%emt 0:00:41]} e2 {[%emt 0:01:08]} 84. Bxe2 {[%emt 0:00:10]} Kxe2 {[%emt 0:00:10]} 85. h4 {[%emt 0:00:04]} Ke3 {[%emt 0:00:37]} 1/2-1/2